[Event "*** SCC Grand Prix: Titled Tuesday Blitz"]
[Site "Chess.com"]
[Date "2020.06.02"]
[Round "2"]
[White "Sanroto99"]
[Black "DiamondCrusher22"]
[Result "0-1"]
[WhiteElo "2313"]
[BlackElo "1979"]
[TimeControl "180+1"]
[EndTime "10:18:46 PDT"]
[Termination "DiamondCrusher22 won on time"]

1. d4 {[%clk 0:03:00.9]} 1... d5 {[%clk 0:02:17.6]} 2. c4 {[%clk 0:03:00.3]}
2... c6 {[%clk 0:02:14.5]} 3. Nc3 {[%clk 0:03:00.5]} 3... Nf6 {[%clk 0:02:13.8]}
4. Nf3 {[%clk 0:03:01]} 4... dxc4 {[%clk 0:02:12.8]} 5. a4 {[%clk 0:02:59.8]}
5... e6 {[%clk 0:02:11.7]} 6. e3 {[%clk 0:02:59.9]} 6... c5 {[%clk 0:02:10.4]}
7. Bxc4 {[%clk 0:02:57.4]} 7... Nc6 {[%clk 0:02:05.4]} 8. O-O {[%clk 0:02:54.6]}
8... cxd4 {[%clk 0:02:04.3]} 9. exd4 {[%clk 0:02:49.3]} 9... Be7 {[%clk
0:02:04.1]} 10. h3 {[%clk 0:02:47.4]} 10... O-O {[%clk 0:02:02.1]} 11. Be3
{[%clk 0:02:47.9]} 11... Nb4 {[%clk 0:02:02.1]} 12. Rc1 {[%clk 0:02:40.6]} 12...
b6 {[%clk 0:02:00.1]} 13. Ne5 {[%clk 0:02:26.3]} 13... Bb7 {[%clk 0:01:59.8]}
14. Be2 {[%clk 0:02:21.6]} 14... Rc8 {[%clk 0:01:54.2]} 15. Bf3 {[%clk
0:02:19.5]} 15... Bxf3 {[%clk 0:01:45.1]} 16. Qxf3 {[%clk 0:02:16.6]} 16... Nbd5
{[%clk 0:01:44.2]} 17. Bg5 {[%clk 0:02:09.6]} 17... Nxc3 {[%clk 0:01:41.2]} 18.
Rxc3 {[%clk 0:01:53.2]} 18... Nd5 {[%clk 0:01:40.3]} 19. Nc6 {[%clk 0:01:34.3]}
19... Rxc6 {[%clk 0:01:10.8]} 20. Rxc6 {[%clk 0:01:13.8]} 20... Bxg5 {[%clk
0:01:09.8]} 21. Qe4 {[%clk 0:01:09.4]} 21... Bf6 {[%clk 0:01:06.8]} 22. Rfc1
{[%clk 0:01:00.9]} 22... Nb4 {[%clk 0:01:05.9]} 23. R6c4 {[%clk 0:00:58.6]}
23... Qd5 {[%clk 0:01:01.2]} 24. Qe3 {[%clk 0:00:40.2]} 24... Na6 {[%clk
0:00:24.6]} 25. Qd3 {[%clk 0:00:30.2]} 25... h6 {[%clk 0:00:24.1]} 26. Rc8
{[%clk 0:00:29.2]} 26... Nb4 {[%clk 0:00:18.1]} 27. Rxf8+ {[%clk 0:00:23.5]}
27... Kxf8 {[%clk 0:00:18.1]} 28. Rc8+ {[%clk 0:00:22.8]} 28... Ke7 {[%clk
0:00:17.7]} 29. Qb5 {[%clk 0:00:21.6]} 29... Qxb5 {[%clk 0:00:17.2]} 30. axb5
{[%clk 0:00:19.9]} 30... Nd5 {[%clk 0:00:16.7]} 31. Ra8 {[%clk 0:00:19.4]} 31...
Bxd4 {[%clk 0:00:15.4]} 32. Rxa7+ {[%clk 0:00:19.8]} 32... Kf6 {[%clk 0:00:16]}
33. Ra2 {[%clk 0:00:18.6]} 33... e5 {[%clk 0:00:13.2]} 34. Kf1 {[%clk
0:00:17.6]} 34... Ke6 {[%clk 0:00:13.6]} 35. Ke2 {[%clk 0:00:18]} 35... Kd6
{[%clk 0:00:14.1]} 36. g3 {[%clk 0:00:16.4]} 36... Kc5 {[%clk 0:00:14.2]} 37.
Ra7 {[%clk 0:00:16.1]} 37... Bxb2 {[%clk 0:00:09.7]} 38. Rxf7 {[%clk 0:00:16.1]}
38... e4 {[%clk 0:00:09.8]} 39. Rd7 {[%clk 0:00:14]} 39... Nc3+ {[%clk
0:00:07.8]} 40. Ke3 {[%clk 0:00:13]} 40... Kxb5 {[%clk 0:00:07]} 41. Re7 {[%clk
0:00:09.3]} 41... Kc4 {[%clk 0:00:07.1]} 42. Rc7+ {[%clk 0:00:08.1]} 42... Kb3
{[%clk 0:00:06]} 43. f3 {[%clk 0:00:06.8]} 43... exf3 {[%clk 0:00:05.1]} 44.
Kxf3 {[%clk 0:00:06.9]} 44... b5 {[%clk 0:00:06]} 45. Rxg7 {[%clk 0:00:06]}
45... b4 {[%clk 0:00:06.3]} 46. Rg6 {[%clk 0:00:06.4]} 46... Kc2 {[%clk
0:00:06.2]} 47. Rxh6 {[%clk 0:00:06.5]} 47... b3 {[%clk 0:00:06.8]} 48. Rb6
{[%clk 0:00:06.9]} 48... Na4 {[%clk 0:00:06.5]} 49. Rxb3 {[%clk 0:00:06]} 49...
Kxb3 {[%clk 0:00:06.8]} 50. g4 {[%clk 0:00:06.4]} 50... Kc4 {[%clk 0:00:07.7]}
51. Ke4 {[%clk 0:00:06.8]} 51... Nc5+ {[%clk 0:00:06.8]} 52. Kf5 {[%clk
0:00:07.1]} 52... Kd5 {[%clk 0:00:07.2]} 53. g5 {[%clk 0:00:07.4]} 53... Kd6
{[%clk 0:00:07.1]} 54. h4 {[%clk 0:00:06.5]} 54... Ke7 {[%clk 0:00:07.6]} 55. h5
{[%clk 0:00:03.2]} 55... Kf7 {[%clk 0:00:08.1]} 56. h6 {[%clk 0:00:03.2]} 56...
Ne6 {[%clk 0:00:07]} 57. g6+ {[%clk 0:00:03.2]} 57... Ke7 {[%clk 0:00:06.6]} 58.
g7 {[%clk 0:00:03.3]} 58... Nxg7+ {[%clk 0:00:02.9]} 0-1

[Event "*** SCC Grand Prix: Titled Tuesday Blitz"]
[Site "Chess.com"]
[Date "2020.06.02"]
[Round "2"]
[White "AshotParvanyan"]
[Black "krasavetc"]
[Result "0-1"]
[WhiteElo "2437"]
[BlackElo "2258"]
[TimeControl "180+1"]
[EndTime "10:18:49 PDT"]
[Termination "krasavetc won on time"]

1. Nf3 {[%clk 0:03:00.9]} 1... Nc6 {[%clk 0:02:58.2]} 2. d4 {[%clk 0:02:59.4]}
2... d5 {[%clk 0:02:57.3]} 3. c4 {[%clk 0:02:58.7]} 3... dxc4 {[%clk 0:02:56.5]}
4. e3 {[%clk 0:02:56.3]} 4... Nf6 {[%clk 0:02:55]} 5. Bxc4 {[%clk 0:02:55.4]}
5... e6 {[%clk 0:02:55.4]} 6. O-O {[%clk 0:02:54.4]} 6... Bd6 {[%clk 0:02:53.8]}
7. Nc3 {[%clk 0:02:54.2]} 7... O-O {[%clk 0:02:52.3]} 8. a3 {[%clk 0:02:07.4]}
8... b6 {[%clk 0:02:36.1]} 9. h3 {[%clk 0:01:53.6]} 9... Bb7 {[%clk 0:02:35.7]}
10. Qc2 {[%clk 0:01:32.6]} 10... Re8 {[%clk 0:02:16.7]} 11. Rd1 {[%clk
0:01:30.6]} 11... Ne7 {[%clk 0:02:15.3]} 12. Ne5 {[%clk 0:01:25.6]} 12... Ng6
{[%clk 0:02:13.4]} 13. Bb5 {[%clk 0:01:04.5]} 13... Rf8 {[%clk 0:02:07.9]} 14.
Nxg6 {[%clk 0:00:47.6]} 14... hxg6 {[%clk 0:02:06.3]} 15. e4 {[%clk 0:00:46.7]}
15... c6 {[%clk 0:01:59.6]} 16. Bd3 {[%clk 0:00:45]} 16... Bb8 {[%clk
0:01:53.2]} 17. e5 {[%clk 0:00:42.4]} 17... Nh7 {[%clk 0:01:49.9]} 18. Be2
{[%clk 0:00:29.1]} 18... Qh4 {[%clk 0:01:41.4]} 19. Qe4 {[%clk 0:00:26.1]} 19...
Qxe4 {[%clk 0:01:34]} 20. Nxe4 {[%clk 0:00:27]} 20... c5 {[%clk 0:01:34.3]} 21.
Bf3 {[%clk 0:00:20.7]} 21... cxd4 {[%clk 0:01:31.2]} 22. Nf6+ {[%clk 0:00:19.9]}
22... Nxf6 {[%clk 0:01:18.1]} 23. Bxb7 {[%clk 0:00:20.8]} 23... Bxe5 {[%clk
0:01:17.9]} 24. Bxa8 {[%clk 0:00:20.4]} 24... Rxa8 {[%clk 0:01:18.8]} 25. Bd2
{[%clk 0:00:14.8]} 25... Ne4 {[%clk 0:01:17.1]} 26. f3 {[%clk 0:00:12.8]} 26...
Nxd2 {[%clk 0:01:16.3]} 27. Rxd2 {[%clk 0:00:13.7]} 27... Bf4 {[%clk 0:01:16.8]}
28. Rd3 {[%clk 0:00:13.2]} 28... Be3+ {[%clk 0:01:16.9]} 29. Kf1 {[%clk
0:00:13.2]} 29... Rc8 {[%clk 0:01:15.5]} 30. Re1 {[%clk 0:00:13.2]} 30... Rc2
{[%clk 0:01:14]} 31. Re2 {[%clk 0:00:13.6]} 31... Rc1+ {[%clk 0:01:12.7]} 32.
Re1 {[%clk 0:00:13.9]} 32... Rc4 {[%clk 0:01:12.7]} 33. g3 {[%clk 0:00:11.9]}
33... f5 {[%clk 0:01:12.1]} 34. Re2 {[%clk 0:00:09.8]} 34... e5 {[%clk
0:01:11.8]} 35. b3 {[%clk 0:00:09.2]} 35... Rc1+ {[%clk 0:01:10.7]} 36. Re1
{[%clk 0:00:09.3]} 36... Rc5 {[%clk 0:01:03.7]} 37. Re2 {[%clk 0:00:05.6]} 37...
g5 {[%clk 0:00:57.7]} 38. h4 {[%clk 0:00:05.3]} 38... gxh4 {[%clk 0:00:56.2]}
39. gxh4 {[%clk 0:00:06.2]} 39... f4 {[%clk 0:00:56.6]} 40. Kg2 {[%clk
0:00:05.4]} 40... Kf7 {[%clk 0:00:56]} 41. Kh3 {[%clk 0:00:04.9]} 41... Kf6
{[%clk 0:00:55.8]} 42. Kg4 {[%clk 0:00:05.2]} 42... Rc1 {[%clk 0:00:54.8]} 43.
Kh3 {[%clk 0:00:04.9]} 43... Rg1 {[%clk 0:00:54.6]} 44. Rc2 {[%clk 0:00:02.9]}
44... Rg3+ {[%clk 0:00:54.1]} 45. Kh2 {[%clk 0:00:03.2]} 45... Rxf3 {[%clk
0:00:55]} 46. Rc6+ {[%clk 0:00:03.2]} 46... Kf5 {[%clk 0:00:54.8]} 47. Rd1
{[%clk 0:00:03.5]} 47... Kg4 {[%clk 0:00:51.2]} 48. Rg6+ {[%clk 0:00:02.8]}
48... Kxh4 {[%clk 0:00:50.9]} 49. Kg2 {[%clk 0:00:03.2]} 49... Rg3+ {[%clk
0:00:49.1]} 50. Rxg3 {[%clk 0:00:03.6]} 50... fxg3 {[%clk 0:00:50]} 51. Kf3
{[%clk 0:00:04.1]} 51... Bf4 {[%clk 0:00:45.7]} 52. Rh1+ {[%clk 0:00:04.3]}
52... Kg5 {[%clk 0:00:45.8]} 53. Rh7 {[%clk 0:00:04.1]} 53... d3 {[%clk
0:00:43.6]} 54. Rxg7+ {[%clk 0:00:04.1]} 54... Kf5 {[%clk 0:00:43.3]} 55. Rf7+
{[%clk 0:00:03.6]} 55... Ke6 {[%clk 0:00:43.5]} 56. Rf8 {[%clk 0:00:03.9]} 56...
Ke7 {[%clk 0:00:29.6]} 57. Rh8 {[%clk 0:00:03.8]} 57... Kf7 {[%clk 0:00:28.5]}
58. Rh1 {[%clk 0:00:04]} 58... Ke6 {[%clk 0:00:28]} 59. Ke4 {[%clk 0:00:03.5]}
59... d2 {[%clk 0:00:27.3]} 60. Rd1 {[%clk 0:00:03.2]} 60... Kf6 {[%clk
0:00:26.8]} 61. Kf3 {[%clk 0:00:03.3]} 61... Kf5 {[%clk 0:00:27.2]} 62. Rh1
{[%clk 0:00:02.4]} 62... e4+ {[%clk 0:00:27]} 63. Kg2 {[%clk 0:00:02.5]} 63...
Ke5 {[%clk 0:00:25.3]} 64. Rd1 {[%clk 0:00:01.1]} 64... Kd4 {[%clk 0:00:25.2]}
65. Kf1 {[%clk 0:00:01.4]} 65... Kd3 {[%clk 0:00:25]} 66. Kg2 {[%clk 0:00:01.3]}
66... e3 {[%clk 0:00:25.2]} 67. Kf3 {[%clk 0:00:01.1]} 67... e2 {[%clk
0:00:25.7]} 0-1

[Event "*** SCC Grand Prix: Titled Tuesday Blitz"]
[Site "Chess.com"]
[Date "2020.06.02"]
[Round "2"]
[White "imdvb6307"]
[Black "chesslh19"]
[Result "0-1"]
[WhiteElo "2388"]
[BlackElo "2176"]
[TimeControl "180+1"]
[EndTime "10:18:49 PDT"]
[Termination "chesslh19 won on time"]

1. c4 {[%clk 0:02:59.5]} 1... e6 {[%clk 0:02:59]} 2. Nf3 {[%clk 0:02:58.2]} 2...
d5 {[%clk 0:02:59.5]} 3. g3 {[%clk 0:02:58.2]} 3... Nf6 {[%clk 0:02:59.2]} 4.
Bg2 {[%clk 0:02:58.1]} 4... Be7 {[%clk 0:02:59.3]} 5. O-O {[%clk 0:02:58.1]}
5... O-O {[%clk 0:02:59.5]} 6. d4 {[%clk 0:02:54.2]} 6... dxc4 {[%clk
0:02:59.5]} 7. Qc2 {[%clk 0:02:53.5]} 7... a6 {[%clk 0:02:59]} 8. a4 {[%clk
0:02:52.4]} 8... Bd7 {[%clk 0:02:59]} 9. Ne5 {[%clk 0:02:07.2]} 9... Bc6 {[%clk
0:02:52.7]} 10. Nxc6 {[%clk 0:02:06.2]} 10... Nxc6 {[%clk 0:02:48.9]} 11. e3
{[%clk 0:02:06.3]} 11... Na5 {[%clk 0:02:01.7]} 12. Nd2 {[%clk 0:02:02.9]} 12...
c5 {[%clk 0:01:36.9]} 13. Nxc4 {[%clk 0:02:01.4]} 13... cxd4 {[%clk 0:01:20.4]}
14. Nxa5 {[%clk 0:01:58.1]} 14... Qxa5 {[%clk 0:01:20.4]} 15. Bxb7 {[%clk
0:01:49.5]} 15... Rab8 {[%clk 0:01:20.4]} 16. Bf3 {[%clk 0:01:44.9]} 16... Rfc8
{[%clk 0:01:16.6]} 17. Qe2 {[%clk 0:01:41]} 17... Bc5 {[%clk 0:00:51.3]} 18. Bd2
{[%clk 0:01:12.1]} 18... Bb4 {[%clk 0:00:50.9]} 19. Bxb4 {[%clk 0:01:09.4]}
19... Qxb4 {[%clk 0:00:50.1]} 20. exd4 {[%clk 0:00:51.2]} 20... Qxb2 {[%clk
0:00:41.3]} 21. Qxa6 {[%clk 0:00:48.1]} 21... Qxd4 {[%clk 0:00:35.9]} 22. Rfd1
{[%clk 0:00:36.7]} 22... Qb6 {[%clk 0:00:35.5]} 23. Qxb6 {[%clk 0:00:32.5]}
23... Rxb6 {[%clk 0:00:35.3]} 24. a5 {[%clk 0:00:32.2]} 24... Rb3 {[%clk
0:00:29.5]} 25. a6 {[%clk 0:00:20.2]} 25... Rxf3 {[%clk 0:00:15.7]} 26. a7
{[%clk 0:00:20.2]} 26... Ra8 {[%clk 0:00:12.1]} 27. Rd8+ {[%clk 0:00:20]} 27...
Rxd8 {[%clk 0:00:12.5]} 28. a8=Q {[%clk 0:00:19.3]} 28... Rd3 {[%clk 0:00:10.8]}
29. Qb7 {[%clk 0:00:16.9]} 29... R3d7 {[%clk 0:00:09]} 30. Qc6 {[%clk
0:00:16.3]} 30... h6 {[%clk 0:00:08]} 31. h3 {[%clk 0:00:15.8]} 31... Rd1+
{[%clk 0:00:08]} 32. Rxd1 {[%clk 0:00:14.8]} 32... Rxd1+ {[%clk 0:00:08.9]} 33.
Kg2 {[%clk 0:00:15.3]} 33... Rd5 {[%clk 0:00:08.4]} 34. Qa8+ {[%clk 0:00:14.4]}
34... Kh7 {[%clk 0:00:08.2]} 35. Qf8 {[%clk 0:00:14.1]} 35... Kg6 {[%clk
0:00:06.8]} 36. g4 {[%clk 0:00:13.2]} 36... h5 {[%clk 0:00:05.8]} 37. f3 {[%clk
0:00:09.6]} 37... hxg4 {[%clk 0:00:06.1]} 38. hxg4 {[%clk 0:00:08.9]} 38... Rd7
{[%clk 0:00:05.3]} 39. Qh8 {[%clk 0:00:08.1]} 39... Rd5 {[%clk 0:00:04.1]} 40.
Kg3 {[%clk 0:00:08.1]} 40... Rb5 {[%clk 0:00:03.1]} 41. Qd8 {[%clk 0:00:05.8]}
41... Rd5 {[%clk 0:00:03.1]} 42. Qc7 {[%clk 0:00:05.7]} 42... Rd7 {[%clk
0:00:02.2]} 43. Qc2+ {[%clk 0:00:05.6]} 43... Kh6 {[%clk 0:00:02.1]} 44. Kh4
{[%clk 0:00:05.1]} 44... g6 {[%clk 0:00:02.2]} 45. g5+ {[%clk 0:00:04.9]} 45...
Kg7 {[%clk 0:00:02.7]} 46. Qb2 {[%clk 0:00:05]} 46... Kg8 {[%clk 0:00:01.9]} 47.
Qxf6 {[%clk 0:00:04.6]} 47... Rd5 {[%clk 0:00:02]} 48. Kg4 {[%clk 0:00:03.8]}
48... Rf5 {[%clk 0:00:02.2]} 49. Qd8+ {[%clk 0:00:03.8]} 49... Kg7 {[%clk
0:00:02.6]} 50. f4 {[%clk 0:00:03.6]} 50... Kh7 {[%clk 0:00:02.8]} 51. Qd7
{[%clk 0:00:02.7]} 51... Kg7 {[%clk 0:00:03.1]} 52. Qe7 {[%clk 0:00:03]} 52...
Kg8 {[%clk 0:00:03.4]} 53. Qe8+ {[%clk 0:00:02.9]} 53... Kg7 {[%clk 0:00:03.9]}
54. Kg3 {[%clk 0:00:02]} 54... Kh7 {[%clk 0:00:03.4]} 55. Qf8 {[%clk 0:00:01.6]}
55... e5 {[%clk 0:00:02.3]} 56. fxe5 {[%clk 0:00:01.5]} 56... Rxg5+ {[%clk
0:00:02.6]} 57. Kf4 {[%clk 0:00:01.7]} 57... Rf5+ {[%clk 0:00:02.9]} 58. Ke4
{[%clk 0:00:02]} 58... Rf2 {[%clk 0:00:03]} 59. Kd5 {[%clk 0:00:01.4]} 59... Rf5
{[%clk 0:00:03.1]} 60. Kd6 {[%clk 0:00:01]} 60... g5 {[%clk 0:00:02]} 0-1

[Event "*** SCC Grand Prix: Titled Tuesday Blitz"]
[Site "Chess.com"]
[Date "2020.06.02"]
[Round "2"]
[White "Ba_clbaf_osed_ingo_3v21"]
[Black "RobPeresian"]
[Result "1-0"]
[WhiteElo "2659"]
[BlackElo "2377"]
[TimeControl "180+1"]
[EndTime "10:18:50 PDT"]
[Termination "Ba_clbaf_osed_ingo_3v21 won on time"]

1. d4 {[%clk 0:03:00.9]} 1... d5 {[%clk 0:02:58]} 2. c4 {[%clk 0:03:00.7]} 2...
c6 {[%clk 0:02:58.2]} 3. cxd5 {[%clk 0:03:00.3]} 3... cxd5 {[%clk 0:02:57.7]} 4.
Bg5 {[%clk 0:03:00.7]} 4... Nf6 {[%clk 0:02:56.1]} 5. Bxf6 {[%clk 0:02:59.7]}
5... gxf6 {[%clk 0:02:56.3]} 6. Nc3 {[%clk 0:03:00.6]} 6... f5 {[%clk
0:02:56.3]} 7. e3 {[%clk 0:03:00.2]} 7... e6 {[%clk 0:02:54.4]} 8. Nf3 {[%clk
0:02:58.7]} 8... a6 {[%clk 0:02:54.2]} 9. Bd3 {[%clk 0:02:58.6]} 9... Nc6 {[%clk
0:02:54.1]} 10. O-O {[%clk 0:02:58.7]} 10... Bd6 {[%clk 0:02:52]} 11. Rc1 {[%clk
0:02:58.2]} 11... Qf6 {[%clk 0:02:50]} 12. g3 {[%clk 0:02:53.7]} 12... Rg8
{[%clk 0:02:45.1]} 13. Na4 {[%clk 0:02:43.5]} 13... f4 {[%clk 0:02:40.1]} 14.
exf4 {[%clk 0:02:37.4]} 14... Bxf4 {[%clk 0:02:35.8]} 15. Bxh7 {[%clk
0:02:02.3]} 15... Rh8 {[%clk 0:02:00.9]} 16. Rxc6 {[%clk 0:01:56.1]} 16... bxc6
{[%clk 0:01:58.2]} 17. Qc2 {[%clk 0:01:56.2]} 17... Bd7 {[%clk 0:01:51]} 18. Nb6
{[%clk 0:01:51.9]} 18... Rd8 {[%clk 0:01:49.2]} 19. Bd3 {[%clk 0:01:47.3]} 19...
Bd6 {[%clk 0:01:33.5]} 20. Kg2 {[%clk 0:01:38.2]} 20... Rb8 {[%clk 0:01:25.3]}
21. Nxd7 {[%clk 0:01:34.7]} 21... Kxd7 {[%clk 0:01:25.5]} 22. Rc1 {[%clk
0:01:35.4]} 22... Rhc8 {[%clk 0:01:24.7]} 23. Bxa6 {[%clk 0:01:31]} 23... Rc7
{[%clk 0:01:25]} 24. a3 {[%clk 0:01:27]} 24... c5 {[%clk 0:01:24.7]} 25. dxc5
{[%clk 0:00:57.9]} 25... Rxc5 {[%clk 0:01:19]} 26. Qa4+ {[%clk 0:00:58.2]} 26...
Ke7 {[%clk 0:01:18.7]} 27. Rxc5 {[%clk 0:00:58.7]} 27... Bxc5 {[%clk 0:01:18.8]}
28. b4 {[%clk 0:00:59.5]} 28... Bd6 {[%clk 0:01:16.6]} 29. Qc2 {[%clk
0:00:43.9]} 29... Qa1 {[%clk 0:01:10.5]} 30. a4 {[%clk 0:00:41]} 30... Rxb4
{[%clk 0:01:06.8]} 31. Bb5 {[%clk 0:00:41.3]} 31... Rb2 {[%clk 0:00:37.2]} 32.
Qc6 {[%clk 0:00:37.8]} 32... Qa3 {[%clk 0:00:23.7]} 33. Qe8+ {[%clk 0:00:31.5]}
33... Kf6 {[%clk 0:00:23.9]} 34. Qd8+ {[%clk 0:00:25.8]} 34... Kg7 {[%clk
0:00:20.7]} 35. Qg5+ {[%clk 0:00:25.8]} 35... Kf8 {[%clk 0:00:19.8]} 36. Qh6+
{[%clk 0:00:16.4]} 36... Ke7 {[%clk 0:00:17.6]} 37. Nd4 {[%clk 0:00:14.3]} 37...
Qa2 {[%clk 0:00:15.1]} 38. Nc6+ {[%clk 0:00:11]} 38... Kd7 {[%clk 0:00:15.2]}
39. Nb4+ {[%clk 0:00:09.7]} 39... Kc7 {[%clk 0:00:15]} 40. Nxa2 {[%clk
0:00:10.6]} 40... Rxa2 {[%clk 0:00:14.9]} 41. Qg7 {[%clk 0:00:10.5]} 41... Bc5
{[%clk 0:00:14.1]} 42. Qxf7+ {[%clk 0:00:10.7]} 42... Kb6 {[%clk 0:00:13.6]} 43.
Qxe6+ {[%clk 0:00:10.6]} 43... Ka5 {[%clk 0:00:14]} 44. Qe1+ {[%clk 0:00:10]}
44... Bb4 {[%clk 0:00:14.2]} 45. h4 {[%clk 0:00:10.9]} 45... Bxe1 {[%clk
0:00:14]} 46. h5 {[%clk 0:00:08.3]} 46... Bxf2 {[%clk 0:00:14]} 47. Kf3 {[%clk
0:00:07.1]} 47... Bd4 {[%clk 0:00:13.5]} 48. g4 {[%clk 0:00:06.6]} 48... Rf2+
{[%clk 0:00:13.5]} 49. Kg3 {[%clk 0:00:06.6]} 49... Rf8 {[%clk 0:00:11.7]} 50.
g5 {[%clk 0:00:06.6]} 50... Be5+ {[%clk 0:00:11.4]} 51. Kh3 {[%clk 0:00:05.8]}
51... d4 {[%clk 0:00:09.3]} 52. h6 {[%clk 0:00:04.9]} 52... Rf4 {[%clk
0:00:07.3]} 53. g6 {[%clk 0:00:04.4]} 53... Rf6 {[%clk 0:00:06.1]} 54. Bd3
{[%clk 0:00:01.5]} 54... Rf3+ {[%clk 0:00:03.7]} 55. Kg4 {[%clk 0:00:01.2]}
55... Rxd3 {[%clk 0:00:02.7]} 56. h7 {[%clk 0:00:01.9]} 56... Rd1 {[%clk
0:00:02.2]} 57. Kh4 {[%clk 0:00:02.2]} 57... Rg1 {[%clk 0:00:02]} 58. h8=Q
{[%clk 0:00:02]} 1-0

[Event "*** SCC Grand Prix: Titled Tuesday Blitz"]
[Site "Chess.com"]
[Date "2020.06.02"]
[Round "2"]
[White "Squirlolz"]
[Black "mfwagnerpeixoto"]
[Result "1-0"]
[WhiteElo "2508"]
[BlackElo "2276"]
[TimeControl "180+1"]
[EndTime "10:18:50 PDT"]
[Termination "Squirlolz won by resignation"]

1. c4 {[%clk 0:02:57.5]} 1... b6 {[%clk 0:02:57.8]} 2. e4 {[%clk 0:02:52.6]}
2... Bb7 {[%clk 0:02:57.2]} 3. Nc3 {[%clk 0:02:52.2]} 3... e6 {[%clk 0:02:56.7]}
4. Bd3 {[%clk 0:02:52.5]} 4... g6 {[%clk 0:02:54.1]} 5. Nf3 {[%clk 0:02:47.6]}
5... Bg7 {[%clk 0:02:53.7]} 6. O-O {[%clk 0:02:48.3]} 6... d6 {[%clk 0:02:53.7]}
7. Bc2 {[%clk 0:02:48.8]} 7... Ne7 {[%clk 0:02:54]} 8. d4 {[%clk 0:02:48.8]}
8... Nd7 {[%clk 0:02:54.2]} 9. Be3 {[%clk 0:02:45.9]} 9... h6 {[%clk 0:02:49.4]}
10. Qd2 {[%clk 0:02:45.6]} 10... a6 {[%clk 0:02:49.1]} 11. Ne1 {[%clk 0:02:36]}
11... f5 {[%clk 0:02:31.9]} 12. d5 {[%clk 0:02:02.3]} 12... e5 {[%clk
0:02:24.3]} 13. f3 {[%clk 0:01:45.9]} 13... f4 {[%clk 0:02:19.5]} 14. Bf2 {[%clk
0:01:45.9]} 14... a5 {[%clk 0:02:15.7]} 15. Nd3 {[%clk 0:01:43.3]} 15... O-O
{[%clk 0:02:14.3]} 16. a3 {[%clk 0:01:43.6]} 16... g5 {[%clk 0:02:05.7]} 17. b4
{[%clk 0:01:43.5]} 17... Nf6 {[%clk 0:01:57.8]} 18. c5 {[%clk 0:01:41.5]} 18...
bxc5 {[%clk 0:01:47.7]} 19. bxc5 {[%clk 0:01:40.5]} 19... g4 {[%clk 0:01:45.3]}
20. cxd6 {[%clk 0:00:59.4]} 20... cxd6 {[%clk 0:01:43.3]} 21. Nb5 {[%clk
0:00:58.4]} 21... g3 {[%clk 0:01:29.8]} 22. hxg3 {[%clk 0:00:57.8]} 22... fxg3
{[%clk 0:01:30.7]} 23. Bxg3 {[%clk 0:00:58.7]} 23... Qb6+ {[%clk 0:01:28.6]} 24.
Bf2 {[%clk 0:00:51.4]} 24... Qxb5 {[%clk 0:01:27.5]} 25. Rfb1 {[%clk 0:00:47.5]}
25... Qd7 {[%clk 0:01:25.7]} 26. Ba4 {[%clk 0:00:48.1]} 26... Qc8 {[%clk
0:01:16.7]} 27. Rc1 {[%clk 0:00:43.6]} 27... Qd8 {[%clk 0:01:08.8]} 28. Rab1
{[%clk 0:00:34]} 28... Ba6 {[%clk 0:01:05.8]} 29. Bb6 {[%clk 0:00:34.1]} 29...
Qb8 {[%clk 0:00:50.5]} 30. Be3 {[%clk 0:00:34.8]} 30... Qd8 {[%clk 0:00:47.2]}
31. Bb6 {[%clk 0:00:34.8]} 31... Qb8 {[%clk 0:00:47.1]} 32. Bxa5 {[%clk
0:00:30.5]} 32... Bxd3 {[%clk 0:00:31.4]} 33. Rxb8 {[%clk 0:00:29.4]} 33...
Rfxb8 {[%clk 0:00:30.5]} 34. Rc7 {[%clk 0:00:19.5]} 34... Ng6 {[%clk 0:00:24.2]}
35. Bd7 {[%clk 0:00:15.9]} 35... Nxd7 {[%clk 0:00:19.5]} 36. Rxd7 {[%clk
0:00:16.8]} 36... Rb1+ {[%clk 0:00:18.5]} 37. Kf2 {[%clk 0:00:15.9]} 37... Nf4
{[%clk 0:00:18.8]} 38. Bb4 {[%clk 0:00:14.4]} 38... Rb8 {[%clk 0:00:18.4]} 39.
Rxd6 {[%clk 0:00:12.7]} 39... Bf8 {[%clk 0:00:17.5]} 40. g3 {[%clk 0:00:06.1]}
40... Bxd6 {[%clk 0:00:16.7]} 41. gxf4 {[%clk 0:00:07]} 41... Bxb4 {[%clk
0:00:15]} 42. axb4 {[%clk 0:00:07.6]} 42... R8xb4 {[%clk 0:00:13.9]} 43. Qxd3
{[%clk 0:00:08]} 43... R4b2+ {[%clk 0:00:12.9]} 44. Kg3 {[%clk 0:00:08.2]} 44...
exf4+ {[%clk 0:00:13.1]} 45. Kxf4 {[%clk 0:00:09.1]} 45... Rb3 {[%clk
0:00:13.4]} 46. Qa6 {[%clk 0:00:08.5]} 46... Kg7 {[%clk 0:00:13.2]} 47. Qe6
{[%clk 0:00:06.4]} 47... Rb6 {[%clk 0:00:13.1]} 48. d6 {[%clk 0:00:05.8]} 48...
Rd1 {[%clk 0:00:11.9]} 49. e5 {[%clk 0:00:04.9]} 49... Rd4+ {[%clk 0:00:10.1]}
50. Kf5 {[%clk 0:00:05.3]} 50... Rbb4 {[%clk 0:00:09.3]} 51. Qf6+ {[%clk
0:00:04.9]} 51... Kg8 {[%clk 0:00:09.2]} 52. Qg6+ {[%clk 0:00:05.2]} 52... Kf8
{[%clk 0:00:09.5]} 53. Ke6 {[%clk 0:00:05.5]} 53... Rf4 {[%clk 0:00:08.1]} 54.
Qxh6+ {[%clk 0:00:06]} 54... Kg8 {[%clk 0:00:08.3]} 55. Qg5+ {[%clk 0:00:06]}
55... Kh7 {[%clk 0:00:08.3]} 56. Qh5+ {[%clk 0:00:05.6]} 56... Kg7 {[%clk
0:00:08.3]} 57. Qg5+ {[%clk 0:00:06.5]} 57... Kh7 {[%clk 0:00:08.6]} 58. d7
{[%clk 0:00:07.4]} 58... Rb6+ {[%clk 0:00:07.7]} 59. Kd5 {[%clk 0:00:07.9]}
59... Rfb4 {[%clk 0:00:07.1]} 60. Qe7+ {[%clk 0:00:05.3]} 60... Kg6 {[%clk
0:00:06.5]} 61. d8=Q {[%clk 0:00:04.9]} 61... R6b5+ {[%clk 0:00:06.5]} 62. Qc5
{[%clk 0:00:04.5]} 62... Rxc5+ {[%clk 0:00:05.5]} 63. Kxc5 {[%clk 0:00:05.4]}
1-0